bitfinex-derivatives/quotes_ETHF0:USTF0_20250817
["timestamp","ask_amount","ask_price","bid_price","bid_amount"]
[1755467709518,1.6305891,4484.3,4484.2,3.253915]
[1755467711226,0.8465891,4484.3,4484.2,3.321615]
[1755467712429,0.8465891,4484.3,4484.2,3.253915]
[1755467712825,0.2589,4484.3,4484.2,3.253915]
[1755467713128,0.6695,4484.3,4484.2,3.253915]
[1755467713323,1.25725044,4484.3,4484.2,3.253915]
[1755467714030,1.01055044,4484.3,4484.2,3.253915]
[1755467715629,2.05235044,4484.3,4484.2,3.253915]
[1755467719832,2.05235044,4484.3,4484.2,3.086815]
[1755467720631,2.05235044,4484.3,4484.2,3.253915]
[1755467722233,1.67895044,4484.3,4484.2,3.253915]
[1755467722830,2.04145044,4484.3,4484.2,3.253915]
[1755467723434,2.03535044,4484.3,4484.2,3.253915]
[1755467734041,0.58775044,4484.3,4484.2,3.321615]
[1755467734241,0.83955044,4484.3,4484.2,3.321615]
[1755467734643,2.02705044,4484.3,4484.2,3.253915]
[1755467738739,1.4393,4484.3,4484.2,3.253915]
[1755467738940,2.02636376,4484.3,4484.2,3.253915]
[1755467739247,1.4393,4484.3,4484.2,3.253915]
[1755467740444,2.02630359,4484.3,4484.2,3.253915]
[1755467743146,1.4393,4484.3,4484.2,3.253915]
[1755467744847,2.02627567,4484.3,4484.2,2.811515]
[1755467745436,2.04857567,4484.3,4484.2,2.417215]
[1755467748141,0.3418,4483.4,4483.3,3.2078]
[1755467748348,0.8363,4482.8,4482.7,3.4672]
[1755467748539,1.42301619,4482.8,4482.7,3.4672]
[1755467749342,0.5168,4482.2,4481.7,3.2078]
[1755467749548,0.8363,4481.8,4481.7,3.8377]
[1755467749748,1.42301619,4481.8,4481.7,3.8377]
[1755467749949,1.42301619,4481.8,4481.7,4.5037]
[1755467750147,1.16731619,4481.8,4481.7,4.5037]
[1755467750344,0.2611,4482.7,4481.9,0.5081]
[1755467750548,1.16610319,4482.6,4482.5,1.4543]
[1755467751449,1.42180319,4482.6,4482.5,1.4543]
[1755467754156,1.42180319,4482.6,4482.5,0.8244]
[1755467754345,3.2078,4483.0,4482.5,0.565]
[1755467754547,0.58403435,4482.9,4482.8,1.4543]
[1755467755857,3.2078,4483.0,4482.8,1.4543]
[1755467756054,3.2078,4483.0,4482.9,1.4543]
[1755467758159,3.3674,4483.0,4482.9,1.4543]
[1755467758358,3.7884,4483.0,4482.9,1.4543]
[1755467759262,3.7884,4483.0,4482.9,0.8244]
[1755467761064,4.0441,4483.0,4482.9,0.666]
[1755467761965,4.0441,4483.0,4482.9,0.4963]
[1755467762569,3.7884,4483.0,4482.9,1.4543]
[1755467762968,4.0441,4483.0,4482.9,1.4543]
[1755467765074,4.0441,4483.0,4482.2,3.2078]
[1755467765279,0.3195,4482.4,4482.3,0.565]
[1755467765472,0.5806,4482.4,4482.3,0.565]
[1755467765877,0.5806,4482.4,4482.3,1.4543]
[1755467767676,0.8363,4482.4,4482.3,1.4543]
[1755467768480,0.5806,4482.4,4482.3,1.4543]
[1755467770784,0.2611,4482.9,4482.3,1.1949]
[1755467770981,0.5806,4482.5,4482.4,1.4543]
[1755467771885,0.3195,4482.5,4482.4,1.4543]
[1755467772478,0.5806,4482.5,4482.4,1.4543]
[1755467772884,0.3195,4482.6,4482.5,1.2174]
[1755467773085,0.5752,4481.9,4481.8,0.666]
[1755467773288,0.8363,4481.9,4481.8,1.0472]
[1755467774086,0.8363,4481.9,4481.8,1.2959]
[1755467775385,1.42191411,4481.9,4481.8,1.2959]
[1755467775581,1.42191411,4481.9,4480.5,3.2078]
[1755467775582,0.2611,4481.8,4480.5,3.2078]
[1755467775787,0.3195,4480.6,4480.5,4.0215]
[1755467775978,0.3195,4480.6,4480.5,4.4027]
[1755467776187,0.5806,4480.6,4480.5,4.4027]
[1755467776689,0.5806,4480.6,4480.5,4.6621]
[1755467777689,1.1664863,4480.6,4480.5,4.6621]
[1755467778293,1.16630121,4480.6,4480.5,4.6621]
[1755467778686,0.90520121,4480.6,4480.2,0.2547]
[1755467778996,0.5933,4480.3,4480.2,1.2279]
[1755467779187,1.17900121,4480.3,4480.2,1.2279]
[1755467779388,1.41940121,4480.3,4480.2,1.4826]
[1755467780389,1.17900121,4480.3,4480.2,1.4826]
[1755467781296,0.58570121,4480.3,4480.2,1.4826]
[1755467781496,0.2599,4480.7,4480.2,1.4826]
[1755467781800,0.84448605,4480.6,4480.3,0.8941]
[1755467781995,0.5003,4480.4,4480.1,0.10044307]
[1755467782187,3.5412,4480.2,4480.1,0.10044307]
[1755467782393,4.62608605,4480.2,4480.1,0.10044307]
[1755467782894,7.62608605,4480.2,4480.1,0.10044307]
[1755467783088,0.2404,4480.0,4479.0,0.3883]
[1755467783289,0.58458605,4479.9,4479.1,0.5058]
[1755467783495,0.2404,4480.0,4479.2,0.643]
[1755467783496,0.84448605,4479.8,4479.2,0.643]
[1755467783697,1.17788605,4479.7,4479.6,1.4826]
[1755467784293,0.3334,4479.1,4479.0,0.4241]
[1755467784499,0.5933,4479.2,4479.1,1.4826]
[1755467786501,0.8337,4479.2,4479.1,1.4826]
[1755467787302,0.3334,4478.7,4478.6,3.6299]
[1755467787503,0.5933,4478.7,4478.6,4.1846]
[1755467787897,0.5933,4478.7,4478.6,4.6904]
[1755467788203,0.8337,4478.7,4478.6,4.6904]
[1755467788398,1.41626136,4478.7,4478.6,4.6904]
[1755467789401,1.17586136,4478.7,4478.6,4.6904]
[1755467789598,1.17586136,4478.7,4478.6,3.2078]
[1755467789798,1.41626136,4478.7,4478.6,3.2078]
[1755467789998,0.58256136,4478.7,4478.6,4.4393]
[1755467790298,1.17586136,4478.7,4478.6,4.6904]
[1755467791105,0.58256136,4478.7,4478.6,4.6904]
[1755467791299,3.4677,4479.7,4478.6,4.7127]
[1755467791499,4.055,4479.7,4479.6,0.8396]
[1755467791701,4.431,4479.7,4479.6,1.4826]
[1755467793406,1.2232,4479.7,4479.6,1.4826]
[1755467796204,1.2232,4480.1,4480.0,1.4826]
[1755467797906,3.2078,4480.2,4480.0,1.4826]
[1755467798107,3.2078,4480.2,4479.2,0.00510867]
[1755467798108,3.2078,4480.2,4480.1,1.4826]
[1755467799012,0.9633,4480.7,4480.6,0.5885]
[1755467799314,1.2232,4480.7,4480.6,1.4826]
[1755467801916,0.9633,4480.7,4480.6,1.4826]
[1755467802415,1.2232,4480.7,4480.6,1.4826]
[1755467803012,0.1,4481.2,4481.0,0.5885]
[1755467803216,33.0103,4481.1,4481.0,1.4826]
[1755467803514,33.59271117,4481.1,4481.0,1.4826]
[1755467805712,2.04601117,4481.1,4481.0,1.4826]
[1755467805913,1.80561117,4481.1,4481.0,1.4826]
[1755467806108,0.58241117,4481.1,4481.0,1.4826]
[1755467808218,0.1,4481.2,4481.1,1.4424]
[1755467808420,0.68287258,4481.2,4481.1,1.4424]
[1755467809316,0.1,4481.2,4481.1,1.4424]
[1755467810612,0.68253283,4481.2,4481.1,1.4424]
[1755467810817,1.91153283,4481.2,4481.1,1.4424]
[1755467811011,2.15413283,4481.2,4481.1,1.4424]
[1755467811520,1.91153283,4481.2,4481.1,0.2382]
[1755467811716,1.91153283,4481.2,4481.1,1.4424]
[1755467812218,1.4716,4480.6,4480.5,1.0796]
[1755467812417,2.05413283,4480.6,4480.5,0.3995]
[1755467812619,2.05413283,4480.6,4480.5,0.2382]
[1755467815723,0.1618,4480.1,4480.0,0.6603]
[1755467815929,1.229,4480.1,4480.0,1.4424]
[1755467825833,0.9728,4480.1,4480.0,1.0796]
[1755467826134,1.229,4480.1,4480.0,1.0796]
[1755467826431,1.229,4480.1,4480.0,1.4424]
[1755467827932,0.8927,4480.5,4480.0,1.4424]
[1755467828128,0.6501,4480.3,4480.1,0.8634]
[1755467828431,1.81342179,4480.2,4480.1,1.4424]
[1755467833737,0.58442179,4480.2,4480.1,1.4424]
[1755467833929,0.58442179,4480.2,4480.1,0.579]
[1755467834435,1.229,4480.2,4480.1,0.579]
[1755467834637,1.81342179,4480.2,4480.1,1.4424]
[1755467857054,0.58442179,4480.2,4480.1,1.4424]
[1755467857262,1.1985,4480.9,4480.8,0.5701]
[1755467857461,1.78298953,4480.9,4480.8,1.4429]
[1755467857959,2.03718953,4480.9,4480.8,1.4429]
[1755467867167,1.78298953,4480.9,4480.8,1.4429]
[1755467867869,2.02748953,4480.9,4480.8,1.4429]
[1755467868464,0.58448953,4480.9,4480.8,1.4429]
[1755467868670,0.97678953,4480.9,4480.8,1.4429]
[1755467868866,1.21668953,4480.9,4480.8,1.4429]
[1755467869067,1.80848953,4480.9,4480.8,1.4429]
[1755467869767,0.58448953,4480.9,4480.8,1.4429]
[1755467869966,0.97678953,4480.9,4480.8,1.4429]
[1755467870163,1.21668953,4480.9,4480.8,1.4429]
[1755467870365,1.46478953,4480.9,4480.8,1.4429]
[1755467870766,1.80848953,4480.9,4480.8,1.4429]
[1755467877068,1.17628953,4480.9,4480.8,1.4429]
[1755467877471,1.80848953,4480.9,4480.8,1.4429]
[1755467886779,0.5918,4480.6,4480.5,0.2385]
[1755467886976,2.05298953,4480.6,4480.5,1.0241]
[1755467887173,2.05298953,4480.6,4480.5,0.3973]
[1755467887671,1.4685,4480.4,4480.3,0.2403]
[1755467887872,1.4685,4480.4,4479.7,3.2078]
[1755467887873,0.6322,4480.3,4479.8,0.6268]
[1755467888075,0.5918,4479.9,4479.8,1.1975]
[1755467888276,1.224,4479.9,4479.8,1.436]
[1755467892781,1.4685,4479.9,4479.8,1.436]
[1755467893678,1.224,4479.9,4479.8,1.436]
[1755467895383,0.8767,4480.7,4479.9,0.8653]
[1755467895582,0.8767,4480.5,4479.8,0.8653]
[1755467895788,1.17529188,4480.4,4480.3,0.5707]
[1755467895977,2.05199188,4480.4,4480.3,1.436]
[1755467900885,0.582,4479.9,4479.8,1.4432]
[1755467901085,1.2006,4479.9,4479.8,1.4432]
[1755467904786,1.16537598,4479.9,4479.8,0.2553]
[1755467905289,2.02447598,4479.9,4479.8,0.2553]
[1755467906085,0.3721,4479.6,4479.5,0.6066]
[1755467906289,1.4411,4479.6,4479.5,1.1879]
[1755467906486,0.8591,4479.5,4479.2,3.2078]
[1755467906788,0.582,4479.6,4479.2,3.2078]
[1755467906789,1.4411,4479.3,4479.2,4.651]
[1755467907194,1.4411,4479.3,4479.2,4.0444]
[1755467907385,2.02427663,4479.3,4479.2,3.4631]
[1755467907984,2.02427663,4479.3,4478.9,0.6066]
[1755467908185,0.582,4479.0,4478.9,1.1879]
[1755467908388,1.4411,4479.0,4478.9,1.1879]
[1755467908880,1.2006,4479.0,4478.7,3.2078]
[1755467909080,1.4411,4478.8,4478.7,0.2553]
[1755467909284,2.02405617,4478.8,4478.7,0.2553]
[1755467909690,2.02405617,4478.8,4478.7,0.495]
[1755467910190,2.02405617,4478.8,4478.7,0.6554]
[1755467910392,2.02405617,4478.8,4478.7,1.0223]
[1755467912188,1.4411,4478.8,4478.7,1.0223]
[1755467912788,1.4411,4478.8,4478.7,1.4432]
[1755467915089,1.2006,4478.8,4478.0,3.2078]
[1755467915287,1.2006,4478.8,4478.7,0.1604]
[1755467915488,1.4411,4478.8,4478.7,1.4432]
[1755467916292,1.4411,4478.8,4478.7,0.4157]
[1755467916595,1.4411,4478.8,4478.7,1.4432]
[1755467920397,1.4411,4478.8,4478.7,1.035]
[1755467920999,1.4411,4478.8,4478.7,1.2747]
[1755467921297,1.4411,4478.8,4478.7,0.4157]
[1755467921496,1.4411,4478.8,4478.7,0.6554]
[1755467921699,1.4411,4478.8,4478.7,1.0223]
[1755467922299,1.4411,4478.8,4478.7,1.1908]
[1755467922599,1.4411,4478.8,4478.7,1.4432]
[1755467924495,1.4411,4478.2,4478.1,1.4432]
[1755467925594,1.2006,4478.2,4478.1,1.4432]
[1755467926414,1.4411,4478.2,4478.1,1.4432]
[1755467927098,1.2006,4478.2,4478.1,1.4432]
[1755467930402,1.4408,4478.2,4478.1,1.4432]
[1755467930998,1.2006,4478.2,4478.1,1.4432]
[1755467933702,1.1863,4478.2,4478.1,1.4432]
[1755467934204,1.77130905,4478.2,4478.1,1.4432]
[1755467936208,1.77130905,4478.2,4478.0,3.2078]
[1755467936404,2.17556336,4480.0,4478.0,3.4501]
[1755467936405,2.00070905,4478.1,4478.0,3.4501]
[1755467936605,2.00070905,4478.1,4478.0,4.2865]
[1755467936804,2.00070905,4478.1,4478.0,4.6583]
[1755467937003,2.00070905,4478.1,4478.0,1.4505]
[1755467939403,2.00070905,4478.1,4477.7,0.6141]
[1755467939404,1.15620905,4478.1,4477.7,0.6141]
[1755467939604,1.4157,4477.6,4477.5,1.4505]
[1755467939811,2.00070905,4477.6,4477.5,1.4505]
[1755467940004,2.00070905,4477.6,4477.5,0.8404]
[1755467940208,2.00070905,4477.6,4477.5,0.4154]
[1755467940411,2.00070905,4477.6,4477.5,0.2423]
[1755467941206,0.5712,4477.1,4477.0,3.8059]
[1755467941511,1.76050905,4477.1,4477.0,3.8059]
[1755467942010,1.76050905,4477.1,4477.0,4.6583]
[1755467942809,2.00070905,4477.1,4477.0,4.6583]
[1755467943005,2.00070905,4477.1,4473.3,5.17593308]
[1755467943006,0.5712,4476.9,4476.8,0.4806]
[1755467943213,2.00070905,4476.9,4476.8,1.4505]
[1755467943510,1.39640905,4476.9,4476.8,0.9699]
[1755467943711,1.39640905,4476.9,4476.8,1.4505]
[1755467944214,2.00070905,4476.9,4476.8,1.4505]
[1755467944910,2.00070905,4476.9,4476.8,1.0787]
[1755467946301,1.0061,4476.8,4476.7,0.5981]
[1755467946502,1.1755,4476.7,4476.6,0.425]
[1755467946708,2.00070905,4476.7,4476.6,1.4505]
[1755467948815,1.76050905,4476.7,4476.6,0.5981]
[1755467949014,0.58500905,4476.7,4476.6,1.4505]
[1755467949214,3.2078,4477.2,4476.6,3.8059]
[1755467949415,3.2078,4477.2,4477.1,1.4505]
[1755467950013,0.6043,4478.0,4477.1,4.6583]
[1755467950213,1.15726031,4477.9,4477.8,0.5981]
[1755467950412,1.76156031,4477.9,4477.8,1.4505]
[1755467951011,0.58606031,4477.9,4477.8,1.4505]
[1755467951915,3.2078,4478.4,4478.3,0.5981]
[1755467952106,3.79394408,4478.4,4478.3,1.4505]
[1755467952312,4.16094408,4478.4,4478.3,1.4505]
[1755467952710,4.39824408,4478.4,4478.3,1.4505]
[1755467954210,4.96944408,4478.4,4478.3,1.4505]
[1755467954615,5.20964408,4478.4,4478.3,1.4505]
[1755467956013,4.96365322,4478.4,4478.3,1.4505]
[1755467956611,1.76164408,4478.4,4478.3,1.4505]
[1755467959120,0.58614408,4478.4,4478.3,1.4505]
[1755467961319,3.4701,4479.4,4479.3,1.4564]
[1755467961320,4.4155,4479.4,4479.3,1.4564]
[1755467961513,5.00187178,4479.4,4479.3,1.4564]
[1755467963017,5.26417178,4479.4,4479.3,1.4564]
[1755467963420,3.79417178,4479.4,4479.3,1.4564]
[1755467963620,4.59337178,4479.4,4479.3,1.4564]
[1755467963920,5.00187178,4479.4,4479.3,1.4564]
[1755467964625,3.79417178,4479.4,4479.3,1.4564]
[1755467964918,4.17287178,4479.4,4479.3,1.4564]
[1755467965116,3.79417178,4479.4,4479.3,1.4564]
[1755467966219,3.2078,4479.4,4479.3,1.4564]
[1755467966923,5.21517675,4483.4,4480.0,1.4564]
[1755467966924,13.1253,4480.1,4480.0,1.4564]
[1755467967126,4.58163447,4480.1,4480.0,1.4564]
[1755467967516,5.00123447,4480.1,4480.0,1.4564]
[1755467970524,20.359,4480.3,4480.0,0.5763]
[1755467970723,1.21874351,4480.2,4480.1,1.4564]
[1755467971216,1.79254351,4480.2,4480.1,1.4564]
[1755467972320,1.2077,4480.2,4480.1,1.4564]
[1755467973024,20.9288,4480.3,4480.2,1.4564]
[1755467973321,21.5627,4480.3,4480.2,1.4564]
[1755467974824,21.5607,4480.3,4480.2,1.4564]
[1755467975229,3.2078,4480.6,4480.5,0.1609]
[1755467975530,3.2078,4481.1,4481.0,1.4564]
[1755467975921,0.6339,4481.6,4481.0,0.5763]
[1755467976224,0.6339,4481.6,4481.1,1.4564]
[1755467978322,0.3787,4481.4,4481.1,1.4564]
[1755467979327,0.3787,4481.6,4481.1,1.4564]
[1755467980025,0.6339,4481.6,4481.1,1.4564]
[1755467980327,0.3787,4481.4,4481.1,1.4564]
[1755467980625,0.6339,4481.4,4481.1,1.4564]
[1755467982015,0.978,4481.2,4481.1,1.4564]
[1755467983222,1.1433,4481.2,4481.1,1.4564]
[1755467983423,1.57,4481.2,4481.1,0.2401]
[1755467983624,0.6738,4481.2,4480.9,0.2401]
[1755467983828,0.5738,4480.3,4480.2,1.4564]
[1755467984029,1.47,4480.3,4480.2,1.0792]
[1755467985827,1.47,4480.3,4480.2,0.401]
[1755467986130,1.47,4480.3,4480.2,1.4564]
[1755467988430,2.05191577,4480.3,4480.2,0.2558]
[1755467989133,2.05193079,4480.3,4480.2,0.2558]
[1755467991426,0.2375,4480.1,4479.5,0.8726]
[1755467991631,0.2375,4480.1,4479.5,0.4154]
[1755467991632,1.4417,4479.6,4479.5,0.4154]
[1755467991931,2.02673079,4479.6,4479.5,0.4154]
[1755467992536,2.02673079,4479.6,4479.5,0.6573]
[1755467992736,1.53003079,4479.6,4479.5,1.4553]
[1755467992929,1.76753079,4479.6,4479.5,1.4553]
[1755467993436,0.837,4479.0,4478.9,1.4553]
[1755467993636,2.0277169,4479.0,4478.9,1.4553]
[1755467993831,2.0277169,4479.0,4478.9,0.2558]
[1755467994526,2.0277169,4479.0,4478.9,0.4977]
[1755467994733,2.0277169,4479.0,4478.9,0.6573]
[1755467995037,2.0277169,4479.0,4478.9,1.0322]
[1755467995537,1.4230169,4479.0,4478.3,0.4977]
[1755467995726,0.5778,4478.4,4478.3,0.8246]
[1755467995926,1.1825,4478.4,4478.3,0.8246]
[1755467996128,1.7685169,4478.4,4478.3,0.8246]
[1755467996330,1.7685169,4478.4,4478.3,1.4553]
[1755467997338,1.1825,4478.4,4478.3,1.4553]
[1755467997538,1.76827467,4478.4,4478.3,1.4553]
[1755467998441,0.945,4478.4,4478.3,1.4553]
[1755467998638,0.8153,4478.7,4478.6,0.5827]
[1755467998836,0.8153,4478.7,4478.4,0.4977]
[1755467998837,0.3335,4477.9,4477.8,1.0804]
[1755467999135,1.1825,4477.9,4477.8,1.4553]
[1755467999337,0.5778,4477.9,4477.3,0.2558]
[1755467999530,0.5854277,4477.8,4477.3,0.5827]
[1755467999735,0.5854277,4477.7,4477.6,1.4553]
[1755468000436,1.7679277,4477.7,4477.6,1.2134]
[1755468000638,1.7679277,4477.7,4477.6,0.4154]
[1755468000940,1.7679277,4477.7,4477.6,1.4553]
[1755468001238,1.5304277,4477.7,4477.6,1.4553]
[1755468001537,3.2078,4478.1,4477.7,0.2419]
[1755468001739,1.99894605,4479.7,4478.5,1.4553]
[1755468001740,1.1825,4478.6,4478.5,1.4553]
[1755468001935,0.58484132,4478.6,4478.5,1.4553]
[1755468002334,20.517,4479.0,4478.9,0.162]
[1755468002644,32.5152,4479.4,4479.3,0.5827]
[1755468002943,33.33725392,4479.4,4479.3,1.4553]
[1755468003131,0.4103,4478.6,4478.5,0.8385]
[1755468003435,0.4103,4478.6,4478.4,0.6168]
[1755468003436,0.5778,4478.3,4478.2,1.1995]
[1755468003636,1.1825,4478.3,4478.2,1.1995]
[1755468003835,20.9647,4478.9,4478.3,0.6168]
[1755468004144,21.5425,4478.9,4478.8,1.4553]
[1755468004636,0.3672,4479.6,4478.7,3.2078]
[1755468004840,1.76684089,4479.5,4479.4,1.4553]
[1755468005340,1.1825,4479.5,4479.4,1.4553]
[1755468006238,4.1528,4480.0,4479.9,0.5827]
[1755468006433,0.58426753,4480.0,4479.9,1.4553]
[1755468006633,19.7226,4480.5,4480.4,0.5827]
[1755468006838,20.0898,4480.5,4480.4,1.4553]
[1755468007035,4.1528,4480.5,4480.4,1.4553]
[1755468007235,3.2078,4480.5,4480.4,1.4553]
[1755468007439,3.2078,4481.1,4481.0,1.4553]
[1755468009245,3.2078,4481.1,4478.9,1.11559]
[1755468009246,0.0223,4480.8,4479.6,3.2078]
[1755468009439,3.2078,4481.1,4473.5,22.33892]
[1755468009440,0.2592,4480.0,4478.7,0.4977]
[1755468009739,0.9382,4479.7,4479.6,0.1596]
[1755468009943,1.1825,4479.7,4479.6,0.4154]
[1755468010343,0.1675,4480.7,4480.6,0.5827]
[1755468010542,0.58356804,4480.7,4480.6,0.5827]
[1755468010737,32.148,4480.8,4480.6,0.5827]
[1755468010937,32.148,4480.8,4480.7,1.4553]
[1755468013647,52.651,4480.8,4480.7,1.4553]
[1755468014735,52.651,4480.8,4480.7,1.0804]
[1755468015051,0.1898,4480.5,4480.1,0.162]
[1755468015349,0.1675,4480.2,4480.1,0.4178]
[1755468015646,0.75127672,4480.2,4480.1,0.4178]
[1755468015847,21.38327672,4480.2,4479.4,3.4497]
[1755468016150,21.38327672,4480.2,4479.5,1.4553]
[1755468016151,0.1675,4479.6,4479.5,1.4553]
[1755468016342,20.6725,4479.6,4479.5,1.4553]
[1755468016843,20.6725,4479.6,4479.2,0.4977]
[1755468017050,0.1675,4479.1,4479.0,1.0804]
[1755468017349,20.6765,4479.1,4479.0,1.4553]
[1755468017750,0.1675,4479.1,4479.0,1.4553]
[1755468017943,20.6765,4479.1,4479.0,1.4553]
[1755468018249,20.6988,4479.1,4478.7,0.2493]
[1755468018546,0.58402192,4479.0,4478.7,1.458]
[1755468018744,20.686,4479.0,4478.9,1.0861]
[1755468018943,21.2700395,4479.0,4478.9,1.0861]
[1755468019644,21.1050395,4479.0,4478.9,1.458]
[1755468019844,32.144,4479.1,4478.9,0.5992]
[1755468020145,20.525,4479.0,4478.9,0.5992]
[1755468020445,32.144,4479.1,4478.9,0.5992]
[1755468020753,32.144,4479.1,4479.0,0.9711]
[1755468020950,52.667,4479.1,4479.0,0.9711]
[1755468021150,52.667,4479.1,4479.0,1.458]
[1755468021846,32.144,4479.1,4479.0,1.458]
[1755468022240,52.663,4479.1,4479.0,1.458]
[1755468022446,20.519,4479.1,4479.0,1.458]
[1755468023153,3.2078,4479.9,4479.0,0.9711]
[1755468023453,12.98400739,4479.8,4479.2,0.3719]
[1755468023750,0.173,4479.4,4479.3,1.458]
[1755468023951,21.09800739,4479.4,4479.3,1.458]
[1755468024140,20.514,4479.4,4479.3,1.458]
[1755468024351,20.687,4479.4,4479.3,1.458]
[1755468024547,0.173,4479.4,4479.3,1.458]
[1755468024748,13.299,4479.4,4479.3,1.0861]
[1755468025349,13.299,4479.4,4479.3,1.458]
[1755468025846,13.299,4479.4,4479.3,1.0861]
[1755468026646,13.299,4479.4,4479.3,1.458]
[1755468026849,13.299,4479.4,4479.3,1.0861]
[1755468027047,0.1081,4479.3,4478.6,0.3719]
[1755468027242,0.2811,4479.3,4479.2,0.2493]
[1755468028048,20.674,4479.3,4479.2,1.0861]
[1755468028253,20.674,4479.3,4479.2,1.458]
[1755468029154,21.2581408,4479.3,4478.6,0.8588]
[1755468029453,20.674,4479.3,4479.2,1.458]
[1755468029647,21.25825594,4479.3,4479.2,1.458]
[1755468029846,21.25825594,4479.3,4479.2,1.0861]
[1755468030243,21.25925594,4479.3,4479.2,1.0861]
[1755468030754,0.75725594,4479.3,4479.2,1.0861]
[1755468030955,21.08225594,4479.3,4479.2,1.458]
[1755468031155,21.36335594,4479.3,4478.6,0.8588]
[1755468031359,0.173,4478.7,4478.6,1.458]
[1755468031568,20.671,4478.7,4478.5,3.2078]
[1755468031758,20.671,4478.7,4478.6,0.2493]
[1755468031957,21.25562678,4478.7,4478.6,0.2493]
[1755468032156,21.25562678,4478.7,4478.0,3.2078]
[1755468032364,0.1732,4478.1,4478.0,3.5451]
[1755468032664,20.6852,4478.1,4478.0,4.4039]
[1755468034161,20.6852,4478.1,4478.0,1.1961]
[1755468034761,20.6852,4478.1,4478.0,1.458]
[1755468036569,20.6852,4478.1,4478.0,1.0861]
[1755468036866,21.37749165,4478.1,4478.0,1.0861]
[1755468037567,20.6852,4478.1,4478.0,1.0861]
[1755468038265,21.26893133,4478.1,4478.0,1.0861]
[1755468039066,21.26893133,4478.1,4478.0,1.458]
[1755468039266,20.6852,4478.1,4478.0,1.458]
[1755468039469,21.26898511,4478.1,4478.0,1.458]
[1755468040968,21.37708511,4478.1,4478.0,1.0861]
[1755468041162,21.37708511,4478.1,4477.6,0.2493]
[1755468041364,0.173,4477.6,4477.2,0.4336]
[1755468041573,0.173,4477.6,4476.8,3.2078]
[1755468041574,0.173,4477.3,4477.0,0.4336]
[1755468041776,3.2078,4477.8,4477.2,1.037]
[1755468042076,21.25893731,4477.7,4477.6,1.458]
[1755468042778,0.75693731,4477.7,4477.6,1.458]
[1755468042963,0.58393731,4477.7,4477.6,1.458]
[1755468043268,20.501,4477.7,4477.6,1.458]
[1755468044265,0.58479075,4477.7,4477.6,1.458]
[1755468044467,21.08779075,4477.7,4477.6,1.458]
[1755468044669,0.58479075,4477.7,4477.6,1.458]
[1755468044872,32.157,4478.1,4477.6,1.1084]
[1755468045074,3.2078,4478.5,4478.1,0.2493]
[1755468045376,3.2078,4478.5,4478.4,1.458]
[1755468045876,23.7148,4478.5,4478.4,1.458]
[1755468046675,20.507,4478.5,4478.4,1.458]
[1755468048673,0.3667,4479.1,4478.4,0.5992]
[1755468048879,0.2618,4479.0,4478.9,0.5796]
[1755468049071,20.7578,4479.0,4478.9,0.5796]
[1755468049479,20.7578,4479.0,4478.9,1.0806]
[1755468049778,20.7578,4479.0,4478.9,1.4585]
[1755468049779,21.2927,4479.0,4478.9,1.4585]
[1755468051788,0.7967,4479.3,4479.2,0.5796]
[1755468052080,21.2877,4479.3,4479.2,1.4585]
[1755468053579,0.7967,4479.3,4479.2,1.4585]
[1755468053779,21.2817,4479.3,4479.2,1.4585]
[1755468054382,0.7967,4479.3,4479.2,1.4585]
[1755468054582,21.2787,4479.3,4479.2,1.4585]
[1755468055983,21.2737,4479.3,4479.2,1.4585]
[1755468056982,21.85727211,4479.3,4479.2,1.4585]
[1755468058880,1.38027211,4479.3,4479.2,1.4585]
[1755468059185,21.85027211,4479.3,4479.2,1.4585]
[1755468061079,1.38027211,4479.3,4479.2,1.4585]
[1755468061281,21.84427211,4479.3,4479.2,1.4585]
[1755468061574,21.84027211,4479.3,4479.2,1.4585]
[1755468062091,21.83727211,4479.3,4479.2,1.4585]
[1755468062680,21.83727211,4479.3,4478.3,3.2301]
[1755468062681,0.4298,4478.5,4478.4,0.5796]
[1755468062984,0.4298,4478.5,4478.4,0.9575]
[1755468062985,20.8858,4478.5,4478.4,0.9575]
[1755468063180,1.01354805,4478.5,4478.4,1.4585]
[1755468063384,20.457,4478.5,4478.4,0.5796]
[1755468063985,20.457,4478.5,4478.4,1.0806]
[1755468064291,20.457,4478.5,4478.4,1.4585]
[1755468065087,20.457,4478.5,4478.4,4.6663]
[1755468066285,20.8179,4478.5,4478.4,4.6663]
[1755468067288,21.40170777,4478.5,4478.4,4.6663]
[1755468067486,20.8179,4478.5,4478.4,4.6663]
[1755468067788,21.40077621,4478.5,4478.4,4.6663]
[1755468068389,0.94977621,4478.5,4478.4,4.6663]
[1755468068590,20.448,4478.5,4478.4,4.6663]
[1755468069291,21.03093848,4478.5,4478.4,4.6663]
[1755468069494,20.448,4478.5,4478.4,4.6663]
[1755468070288,20.441,4478.5,4478.4,4.6663]
[1755468071294,21.02406177,4478.5,4478.4,4.6663]
[1755468071488,21.39096177,4478.5,4478.4,4.6663]
[1755468071787,21.02406177,4478.5,4478.4,4.6663]
[1755468071994,21.02415358,4478.5,4478.4,4.6663]
[1755468072195,21.39105358,4478.5,4478.4,4.6663]
[1755468072494,21.02415358,4478.5,4478.4,4.6663]
[1755468073996,0.58315358,4478.5,4478.4,4.6663]
[1755468074195,21.00915358,4478.5,4478.4,4.6663]
[1755468076598,21.37605358,4478.5,4478.4,4.6663]
[1755468077701,0.95005358,4478.5,4478.4,4.6663]
[1755468077998,21.36605358,4478.5,4478.4,4.6663]
[1755468078792,21.76475358,4478.5,4478.4,4.6663]